[Event "Late-Titled-Tuesday-Blitz-January-30-2024"]
[Site "Chess.com"]
[Date "2024.01.30"]
[Round "7"]
[White "Hamisandwich"]
[Black "LittleChessFan"]
[Result "1-0"]
[WhiteElo "2722"]
[BlackElo "2307"]
[TimeControl "180+1"]
[EndTime "15:18:29 PST"]
[Termination "Hamisandwich won by checkmate"]

1. c3 {[%clk 0:02:57.1]} 1... d5 {[%clk 0:02:57.4]} 2. d3 {[%clk 0:02:53.1]}
2... c5 {[%clk 0:02:52.3]} 3. g3 {[%clk 0:02:47]} 3... Nc6 {[%clk 0:02:52.1]} 4.
Bg2 {[%clk 0:02:47.4]} 4... Nf6 {[%clk 0:02:51.3]} 5. Bg5 {[%clk 0:02:38.1]}
5... Bg4 {[%clk 0:02:47.6]} 6. Bxf6 {[%clk 0:02:22.4]} 6... exf6 {[%clk
0:02:48.5]} 7. Qb3 {[%clk 0:02:23.1]} 7... Ne7 {[%clk 0:02:11.3]} 8. Qb5+ {[%clk
0:02:15.5]} 8... Qd7 {[%clk 0:02:05.2]} 9. Qxc5 {[%clk 0:02:14.7]} 9... g6
{[%clk 0:02:00.1]} 10. Nd2 {[%clk 0:02:04.3]} 10... Bg7 {[%clk 0:01:59.6]} 11.
Ngf3 {[%clk 0:01:56.9]} 11... O-O {[%clk 0:01:57.8]} 12. Nd4 {[%clk 0:01:53.7]}
12... Be6 {[%clk 0:01:51.5]} 13. O-O {[%clk 0:01:46.1]} 13... f5 {[%clk
0:01:49.5]} 14. N2b3 {[%clk 0:01:41.1]} 14... Kh8 {[%clk 0:01:48]} 15. Qb5
{[%clk 0:01:37.3]} 15... Nc6 {[%clk 0:01:16.4]} 16. Nxe6 {[%clk 0:01:29.6]}
16... Qxe6 {[%clk 0:01:10.8]} 17. Nc5 {[%clk 0:01:25.7]} 17... Qxe2 {[%clk
0:01:10.5]} 18. Rfe1 {[%clk 0:01:17.8]} 18... Qh5 {[%clk 0:00:59.4]} 19. Nd7
{[%clk 0:01:03.5]} 19... Rfc8 {[%clk 0:00:48]} 20. Qxb7 {[%clk 0:01:00.9]} 20...
f4 {[%clk 0:00:43.4]} 21. d4 {[%clk 0:00:50.3]} 21... f3 {[%clk 0:00:42.6]} 22.
Bf1 {[%clk 0:00:50.8]} 22... Na5 {[%clk 0:00:36.9]} 23. Qa6 {[%clk 0:00:43.7]}
23... Nc4 {[%clk 0:00:36.3]} 24. Re7 {[%clk 0:00:31.3]} 24... Kg8 {[%clk
0:00:25.2]} 25. Rae1 {[%clk 0:00:23.5]} 25... Nd2 {[%clk 0:00:21.8]} 26. Qd3
{[%clk 0:00:17.2]} 26... Nxf1 {[%clk 0:00:20.5]} 27. Qxf1 {[%clk 0:00:18.1]}
27... a5 {[%clk 0:00:15.3]} 28. Ne5 {[%clk 0:00:14.9]} 28... Bf6 {[%clk
0:00:13.2]} 29. Rxf7 {[%clk 0:00:10.3]} 29... Bxe5 {[%clk 0:00:12.1]} 30. Rxe5
{[%clk 0:00:11.2]} 30... Qxe5 {[%clk 0:00:12.5]} 31. dxe5 {[%clk 0:00:12.1]}
31... Kxf7 {[%clk 0:00:13.4]} 32. Qd3 {[%clk 0:00:11.9]} 32... Kg7 {[%clk
0:00:12.6]} 33. Qxf3 {[%clk 0:00:11]} 33... Rd8 {[%clk 0:00:13]} 34. Qf6+ {[%clk
0:00:10.2]} 34... Kg8 {[%clk 0:00:12.2]} 35. e6 {[%clk 0:00:11.1]} 35... Rf8
{[%clk 0:00:12.6]} 36. Qe5 {[%clk 0:00:11.4]} 36... Rf5 {[%clk 0:00:12.2]} 37.
Qd6 {[%clk 0:00:10.5]} 37... Re8 {[%clk 0:00:11.6]} 38. Qd7 {[%clk 0:00:10.7]}
38... Kf8 {[%clk 0:00:11]} 39. g4 {[%clk 0:00:08.8]} 39... Rf6 {[%clk
0:00:09.9]} 40. Qd6+ {[%clk 0:00:07.8]} 40... Re7 {[%clk 0:00:08.9]} 41. Qd8+
{[%clk 0:00:06.9]} 41... Re8 {[%clk 0:00:09.4]} 42. Qxf6+ {[%clk 0:00:07.5]}
42... Kg8 {[%clk 0:00:09.6]} 43. Qf7+ {[%clk 0:00:08.4]} 43... Kh8 {[%clk
0:00:09.3]} 44. Qxe8+ {[%clk 0:00:09.3]} 44... Kg7 {[%clk 0:00:10.2]} 45. Qd7+
{[%clk 0:00:09.7]} 45... Kh6 {[%clk 0:00:11.1]} 46. e7 {[%clk 0:00:10.6]} 46...
d4 {[%clk 0:00:11.2]} 47. Qxd4 {[%clk 0:00:11]} 47... a4 {[%clk 0:00:11.3]} 48.
Qxa4 {[%clk 0:00:11.9]} 48... Kg5 {[%clk 0:00:11.3]} 49. Qe4 {[%clk 0:00:11.9]}
49... Kh4 {[%clk 0:00:12.2]} 50. g5+ {[%clk 0:00:12.1]} 50... Kh3 {[%clk
0:00:12.3]} 51. Qg2+ {[%clk 0:00:11.9]} 51... Kh4 {[%clk 0:00:12.5]} 52. e8=Q
{[%clk 0:00:12.5]} 52... Kh5 {[%clk 0:00:13]} 53. Qe2+ {[%clk 0:00:13]} 53...
Kh4 {[%clk 0:00:12.6]} 54. c4 {[%clk 0:00:13.1]} 54... h5 {[%clk 0:00:10.1]} 55.
gxh6 {[%clk 0:00:13.1]} 55... g5 {[%clk 0:00:07.7]} 56. h3 {[%clk 0:00:13.1]}
56... g4 {[%clk 0:00:07.1]} 57. Qexg4# {[%clk 0:00:14]} 1-0

[Event "Late-Titled-Tuesday-Blitz-January-30-2024"]
[Site "Chess.com"]
[Date "2024.01.30"]
[Round "7"]
[White "ameetghasi100"]
[Black "Brahianzevich"]
[Result "1-0"]
[WhiteElo "2749"]
[BlackElo "2424"]
[TimeControl "180+1"]
[EndTime "15:18:32 PST"]
[Termination "ameetghasi100 won by resignation"]

1. d4 {[%clk 0:03:00]} 1... d5 {[%clk 0:03:00]} 2. Nf3 {[%clk 0:02:59.5]} 2...
e6 {[%clk 0:02:58.3]} 3. e3 {[%clk 0:02:58.7]} 3... Nf6 {[%clk 0:02:58]} 4. Bd3
{[%clk 0:02:59.1]} 4... c5 {[%clk 0:02:55.5]} 5. b3 {[%clk 0:02:58.7]} 5... Nc6
{[%clk 0:02:55.6]} 6. a3 {[%clk 0:02:58.3]} 6... Bd6 {[%clk 0:02:54.1]} 7. Bb2
{[%clk 0:02:58.4]} 7... O-O {[%clk 0:02:54.6]} 8. O-O {[%clk 0:02:58.6]} 8... b6
{[%clk 0:02:54.9]} 9. Nbd2 {[%clk 0:02:58.7]} 9... Bb7 {[%clk 0:02:54.9]} 10.
dxc5 {[%clk 0:02:56.2]} 10... Bxc5 {[%clk 0:02:47.1]} 11. b4 {[%clk 0:02:55.9]}
11... Be7 {[%clk 0:02:46.1]} 12. c4 {[%clk 0:02:55.7]} 12... Rc8 {[%clk
0:02:17]} 13. Rc1 {[%clk 0:02:49.2]} 13... dxc4 {[%clk 0:01:52.7]} 14. Nxc4
{[%clk 0:02:50.1]} 14... Nd5 {[%clk 0:01:40.7]} 15. Qe2 {[%clk 0:02:44.8]} 15...
Bf6 {[%clk 0:01:40.3]} 16. Rfd1 {[%clk 0:02:39.9]} 16... Bxb2 {[%clk 0:01:36.9]}
17. Qxb2 {[%clk 0:02:40.8]} 17... Qe7 {[%clk 0:01:37.2]} 18. h4 {[%clk
0:02:27.9]} 18... Rfd8 {[%clk 0:01:33.8]} 19. Bb1 {[%clk 0:02:17.5]} 19... Nf6
{[%clk 0:00:55.6]} 20. b5 {[%clk 0:02:08.1]} 20... Rxd1+ {[%clk 0:00:54.6]} 21.
Rxd1 {[%clk 0:02:07.2]} 21... Nb8 {[%clk 0:00:46.7]} 22. Nce5 {[%clk 0:02:00.4]}
22... Nbd7 {[%clk 0:00:38.9]} 23. a4 {[%clk 0:01:32]} 23... Nxe5 {[%clk
0:00:35.5]} 24. Nxe5 {[%clk 0:01:32.9]} 24... Rd8 {[%clk 0:00:35.2]} 25. Rc1
{[%clk 0:01:32.3]} 25... Ne4 {[%clk 0:00:29]} 26. Bxe4 {[%clk 0:00:41.1]} 26...
Bxe4 {[%clk 0:00:28.4]} 27. f3 {[%clk 0:00:29.4]} 27... Bb7 {[%clk 0:00:26]} 28.
Qf2 {[%clk 0:00:20.4]} 28... f6 {[%clk 0:00:24.5]} 29. Ng4 {[%clk 0:00:19.3]}
29... h5 {[%clk 0:00:23.8]} 30. Nh2 {[%clk 0:00:19.8]} 30... Rc8 {[%clk
0:00:21.1]} 31. Rd1 {[%clk 0:00:18.6]} 31... Rd8 {[%clk 0:00:20.6]} 32. Qe1
{[%clk 0:00:15.8]} 32... Rxd1 {[%clk 0:00:19.7]} 33. Qxd1 {[%clk 0:00:16.7]}
33... Qc5 {[%clk 0:00:19.9]} 34. Nf1 {[%clk 0:00:15.8]} 34... Qd5 {[%clk
0:00:18.3]} 35. Qc2 {[%clk 0:00:15.7]} 35... Kf7 {[%clk 0:00:09.3]} 36. Qc7+
{[%clk 0:00:15]} 36... Kg6 {[%clk 0:00:09.7]} 37. Qb8 {[%clk 0:00:13.6]} 37...
Qd7 {[%clk 0:00:02.7]} 38. Qxa7 {[%clk 0:00:11.9]} 38... Qc7 {[%clk 0:00:03.3]}
39. a5 {[%clk 0:00:06.8]} 39... bxa5 {[%clk 0:00:03.4]} 40. b6 {[%clk
0:00:07.3]} 40... Qc6 {[%clk 0:00:03.3]} 41. Qxa5 {[%clk 0:00:07.5]} 41... f5
{[%clk 0:00:03]} 42. Qb4 {[%clk 0:00:07.6]} 42... Kf6 {[%clk 0:00:02.7]} 43.
Qb2+ {[%clk 0:00:07.4]} 43... Kf7 {[%clk 0:00:03]} 44. Ng3 {[%clk 0:00:06.6]}
44... g6 {[%clk 0:00:02.1]} 45. Ne2 {[%clk 0:00:07]} 45... Ba6 {[%clk
0:00:01.6]} 46. Nd4 {[%clk 0:00:06.6]} 46... Qd5 {[%clk 0:00:01.4]} 47. Qb4
{[%clk 0:00:05.7]} 47... e5 {[%clk 0:00:01.4]} 48. Nb3 {[%clk 0:00:05.3]} 48...
Qd1+ {[%clk 0:00:01.5]} 49. Kh2 {[%clk 0:00:05.6]} 49... Qd7 {[%clk 0:00:02.2]}
50. Nc5 {[%clk 0:00:05.2]} 50... Qc8 {[%clk 0:00:02.4]} 51. Qb3+ {[%clk
0:00:05.3]} 51... Kf6 {[%clk 0:00:02.3]} 52. Qd5 {[%clk 0:00:05.3]} 52... Bb5
{[%clk 0:00:02]} 53. Qd6+ {[%clk 0:00:05.5]} 53... Kg7 {[%clk 0:00:02]} 54. b7
{[%clk 0:00:06]} 54... Qxb7 {[%clk 0:00:01.7]} 55. Nxb7 {[%clk 0:00:06.2]} 1-0

[Event "Late-Titled-Tuesday-Blitz-January-30-2024"]
[Site "Chess.com"]
[Date "2024.01.30"]
[Round "7"]
[White "Alexander_Donchenko"]
[Black "oskariot"]
[Result "1-0"]
[WhiteElo "2936"]
[BlackElo "2755"]
[TimeControl "180+1"]
[EndTime "15:18:33 PST"]
[Termination "Alexander_Donchenko won by resignation"]

1. Nf3 {[%clk 0:03:00.9]} 1... c5 {[%clk 0:03:00.3]} 2. c4 {[%clk 0:03:00.5]}
2... Nf6 {[%clk 0:03:00.7]} 3. Nc3 {[%clk 0:03:00.7]} 3... d6 {[%clk 0:03:00]}
4. e3 {[%clk 0:03:00.1]} 4... g6 {[%clk 0:02:58.7]} 5. d4 {[%clk 0:03:00.3]}
5... Nc6 {[%clk 0:02:53.3]} 6. dxc5 {[%clk 0:02:59.7]} 6... dxc5 {[%clk
0:02:50.5]} 7. Qxd8+ {[%clk 0:03:00.6]} 7... Nxd8 {[%clk 0:02:51.3]} 8. b3
{[%clk 0:03:01]} 8... Bg7 {[%clk 0:02:50.8]} 9. Bb2 {[%clk 0:03:01.5]} 9... Ne4
{[%clk 0:02:46.9]} 10. Na4 {[%clk 0:02:56.2]} 10... Bxb2 {[%clk 0:02:40.7]} 11.
Nxb2 {[%clk 0:02:57.1]} 11... b6 {[%clk 0:02:38.4]} 12. Bd3 {[%clk 0:02:49.2]}
12... Bb7 {[%clk 0:02:38.5]} 13. Na4 {[%clk 0:02:47.9]} 13... f6 {[%clk
0:02:32.2]} 14. Ke2 {[%clk 0:02:45.2]} 14... Nf7 {[%clk 0:02:23.6]} 15. Bxe4
{[%clk 0:02:39.3]} 15... Bxe4 {[%clk 0:02:23.8]} 16. Nc3 {[%clk 0:02:40.2]}
16... Bc6 {[%clk 0:02:20.6]} 17. h4 {[%clk 0:02:40.3]} 17... O-O-O {[%clk
0:02:17.2]} 18. a4 {[%clk 0:02:37.4]} 18... a5 {[%clk 0:02:04.8]} 19. Rad1
{[%clk 0:02:37]} 19... Rxd1 {[%clk 0:02:01.8]} 20. Rxd1 {[%clk 0:02:37]} 20...
Rd8 {[%clk 0:02:02.3]} 21. Rxd8+ {[%clk 0:02:28.4]} 21... Kxd8 {[%clk
0:02:03.2]} 22. g3 {[%clk 0:02:26.8]} 22... Kd7 {[%clk 0:02:00.7]} 23. Nd2
{[%clk 0:02:25.5]} 23... Ne5 {[%clk 0:01:40.9]} 24. Nd5 {[%clk 0:02:21.1]} 24...
Kd6 {[%clk 0:01:15.4]} 25. Ne4+ {[%clk 0:02:12.5]} 25... Ke6 {[%clk 0:01:14.6]}
26. Nec3 {[%clk 0:02:07]} 26... Nd7 {[%clk 0:01:12.6]} 27. Nc7+ {[%clk
0:02:00.4]} 27... Kd6 {[%clk 0:01:06.7]} 28. Ne8+ {[%clk 0:02:00.1]} 28... Ke6
{[%clk 0:01:05.9]} 29. e4 {[%clk 0:01:59.8]} 29... Kf7 {[%clk 0:01:02.9]} 30.
Nc7 {[%clk 0:01:59.6]} 30... e6 {[%clk 0:01:03]} 31. f4 {[%clk 0:01:58]} 31...
Ke7 {[%clk 0:01:01.6]} 32. Ke3 {[%clk 0:01:57.7]} 32... h5 {[%clk 0:00:52.1]}
33. N7b5 {[%clk 0:01:53.1]} 33... Nb8 {[%clk 0:00:44.2]} 34. Na3 {[%clk
0:01:48.9]} 34... Na6 {[%clk 0:00:43.5]} 35. Nc2 {[%clk 0:01:48.8]} 35... Nb4
{[%clk 0:00:40.9]} 36. Ne1 {[%clk 0:01:43.3]} 36... Kd6 {[%clk 0:00:24.9]} 37.
Ne2 {[%clk 0:01:38.9]} 37... e5 {[%clk 0:00:15.6]} 38. Nc3 {[%clk 0:01:34.1]}
38... f5 {[%clk 0:00:16]} 39. exf5 {[%clk 0:01:16.7]} 39... gxf5 {[%clk
0:00:15.5]} 40. fxe5+ {[%clk 0:01:08.5]} 40... Kxe5 {[%clk 0:00:15.7]} 41. Nb5
{[%clk 0:01:08.1]} 41... Be4 {[%clk 0:00:08.3]} 42. Nc7 {[%clk 0:01:06.9]} 42...
Bb1 {[%clk 0:00:07.2]} 43. Na8 {[%clk 0:01:04.6]} 43... Ba2 {[%clk 0:00:06.5]}
44. Nf3+ {[%clk 0:00:58]} 44... Kd6 {[%clk 0:00:06.3]} 45. Nxb6 {[%clk 0:00:58]}
45... Bxb3 {[%clk 0:00:06.7]} 46. Nd2 {[%clk 0:00:58.4]} 46... Bc2 {[%clk
0:00:06.6]} 47. Kf4 {[%clk 0:00:56.2]} 47... Kc6 {[%clk 0:00:07]} 48. Nc8 {[%clk
0:00:55.8]} 48... Bxa4 {[%clk 0:00:07.3]} 49. Ne7+ {[%clk 0:00:56]} 49... Kd7
{[%clk 0:00:06.9]} 50. Nxf5 {[%clk 0:00:55.5]} 50... Bc2 {[%clk 0:00:06.3]} 51.
Ne3 {[%clk 0:00:54.2]} 51... Bd3 {[%clk 0:00:06.9]} 52. Nb3 {[%clk 0:00:51.7]}
52... Na6 {[%clk 0:00:01.5]} 53. Nxa5 {[%clk 0:00:51.6]} 53... Kc7 {[%clk
0:00:01.3]} 54. Nd5+ {[%clk 0:00:50.7]} 54... Kd6 {[%clk 0:00:01.1]} 55. Nf6
{[%clk 0:00:48.7]} 55... Nb4 {[%clk 0:00:01.6]} 56. Nxh5 {[%clk 0:00:46.6]}
56... Kc7 {[%clk 0:00:01.3]} 57. Nb3 {[%clk 0:00:42.7]} 57... Kb6 {[%clk
0:00:01.7]} 58. Nd2 {[%clk 0:00:43.1]} 58... Nc2 {[%clk 0:00:01.6]} 59. Nf6
{[%clk 0:00:42.4]} 59... Na3 {[%clk 0:00:02]} 60. Nd5+ {[%clk 0:00:42.4]} 60...
Kc6 {[%clk 0:00:02.6]} 61. Ne3 {[%clk 0:00:42.5]} 61... Kd6 {[%clk 0:00:03]} 62.
h5 {[%clk 0:00:42.7]} 62... Ke6 {[%clk 0:00:03.4]} 63. g4 {[%clk 0:00:43.1]}
63... Kf6 {[%clk 0:00:04]} 64. g5+ {[%clk 0:00:42.4]} 64... Ke6 {[%clk
0:00:04.7]} 65. Nb3 {[%clk 0:00:35.4]} 65... Kd6 {[%clk 0:00:03.6]} 66. Na5
{[%clk 0:00:34.7]} 66... Ke6 {[%clk 0:00:02.4]} 67. Nb7 {[%clk 0:00:34.8]} 67...
Bxc4 {[%clk 0:00:01.6]} 68. Nxc5+ {[%clk 0:00:34.8]} 68... Kf7 {[%clk
0:00:02.1]} 69. g6+ {[%clk 0:00:33.2]} 69... Kf6 {[%clk 0:00:02.3]} 70. Ne4+
{[%clk 0:00:33]} 70... Ke7 {[%clk 0:00:01.9]} 71. h6 {[%clk 0:00:32.4]} 71...
Bd3 {[%clk 0:00:02]} 72. h7 {[%clk 0:00:32.5]} 1-0

[Event "Late-Titled-Tuesday-Blitz-January-30-2024"]
[Site "Chess.com"]
[Date "2024.01.30"]
[Round "7"]
[White "Nf3c5"]
[Black "BardArtem"]
[Result "0-1"]
[WhiteElo "2521"]
[BlackElo "2766"]
[TimeControl "180+1"]
[EndTime "15:18:37 PST"]
[Termination "BardArtem won on time"]

1. d4 {[%clk 0:03:00.9]} 1... Nf6 {[%clk 0:02:58.5]} 2. Nf3 {[%clk 0:03:01.3]}
2... b6 {[%clk 0:02:58.9]} 3. Bg5 {[%clk 0:02:59.5]} 3... Bb7 {[%clk 0:02:59.8]}
4. Nbd2 {[%clk 0:02:59.6]} 4... g6 {[%clk 0:02:59.4]} 5. e3 {[%clk 0:02:39.8]}
5... Bg7 {[%clk 0:02:59]} 6. Be2 {[%clk 0:02:40.3]} 6... O-O {[%clk 0:02:58.9]}
7. O-O {[%clk 0:02:40.8]} 7... d6 {[%clk 0:02:57]} 8. c4 {[%clk 0:02:33.1]} 8...
Nbd7 {[%clk 0:02:56.4]} 9. Qc2 {[%clk 0:02:32.7]} 9... Qe8 {[%clk 0:02:54.2]}
10. b4 {[%clk 0:02:04.3]} 10... e5 {[%clk 0:02:51]} 11. dxe5 {[%clk 0:01:54]}
11... Ng4 {[%clk 0:02:46.8]} 12. Rac1 {[%clk 0:01:45]} 12... Ngxe5 {[%clk
0:02:45.6]} 13. Nxe5 {[%clk 0:01:40.6]} 13... Nxe5 {[%clk 0:02:46.5]} 14. c5
{[%clk 0:01:37]} 14... dxc5 {[%clk 0:02:36.7]} 15. bxc5 {[%clk 0:01:35.3]} 15...
Qc6 {[%clk 0:02:36.9]} 16. Nf3 {[%clk 0:01:29.9]} 16... Rfe8 {[%clk 0:02:29.8]}
17. Bf4 {[%clk 0:01:28.8]} 17... Rad8 {[%clk 0:02:20.6]} 18. Qb3 {[%clk
0:01:20.4]} 18... Qd5 {[%clk 0:02:11.8]} 19. Qa3 {[%clk 0:01:12.5]} 19... Nd3
{[%clk 0:01:27.5]} 20. Bxd3 {[%clk 0:00:43.8]} 20... Qxd3 {[%clk 0:01:28.4]} 21.
Qxa7 {[%clk 0:00:38.5]} 21... Qd5 {[%clk 0:01:02.4]} 22. cxb6 {[%clk 0:00:31.1]}
22... Ra8 {[%clk 0:01:00.8]} 23. Rfd1 {[%clk 0:00:24.3]} 23... Qe4 {[%clk
0:00:49.4]} 24. Rxc7 {[%clk 0:00:18.8]} 24... Rxa7 {[%clk 0:00:48.1]} 25. bxa7
{[%clk 0:00:19.7]} 25... h6 {[%clk 0:00:43.3]} 26. h3 {[%clk 0:00:17.9]} 26...
g5 {[%clk 0:00:41.7]} 27. Bg3 {[%clk 0:00:16.9]} 27... Qa4 {[%clk 0:00:41.8]}
28. Rdd7 {[%clk 0:00:16.3]} 28... Bxf3 {[%clk 0:00:20.7]} 29. gxf3 {[%clk
0:00:17.2]} 29... Ra8 {[%clk 0:00:06.6]} 30. Rxf7 {[%clk 0:00:16.1]} 30... Bf8
{[%clk 0:00:07.2]} 31. Be5 {[%clk 0:00:15.2]} 31... Qxa2 {[%clk 0:00:05.9]} 32.
Rfd7 {[%clk 0:00:12.1]} 32... Qe2 {[%clk 0:00:04.4]} 33. Kg2 {[%clk 0:00:11.6]}
33... Qa2 {[%clk 0:00:04.5]} 34. Bd4 {[%clk 0:00:11.8]} 34... Qa6 {[%clk
0:00:03.9]} 35. Rb7 {[%clk 0:00:10.4]} 35... Qc6 {[%clk 0:00:03.2]} 36. Rdc7
{[%clk 0:00:09.1]} 36... Qd5 {[%clk 0:00:03]} 37. Rb8 {[%clk 0:00:07.7]} 37...
h5 {[%clk 0:00:02]} 38. Rcc8 {[%clk 0:00:06.4]} 38... Rxa7 {[%clk 0:00:02]} 39.
Bxa7 {[%clk 0:00:07.3]} 39... g4 {[%clk 0:00:01.4]} 40. Rxf8+ {[%clk 0:00:08]}
40... Kh7 {[%clk 0:00:02]} 41. hxg4 {[%clk 0:00:07.6]} 41... hxg4 {[%clk
0:00:02.9]} 42. Rh8+ {[%clk 0:00:08.2]} 42... Kg7 {[%clk 0:00:02.6]} 43. Rbg8+
{[%clk 0:00:09.1]} 43... Kf7 {[%clk 0:00:03.1]} 44. Rxg4 {[%clk 0:00:09.4]}
44... Qa2 {[%clk 0:00:03.8]} 45. Rh7+ {[%clk 0:00:09.4]} 45... Kf6 {[%clk
0:00:02.5]} 46. Bd4+ {[%clk 0:00:09.7]} 46... Kf5 {[%clk 0:00:02.3]} 47. Rf7+
{[%clk 0:00:09]} 47... Ke6 {[%clk 0:00:02.6]} 48. Rf6+ {[%clk 0:00:09.5]} 48...
Kd5 {[%clk 0:00:02.2]} 49. Rb6 {[%clk 0:00:06.2]} 49... Kc4 {[%clk 0:00:01.7]}
50. Bf6+ {[%clk 0:00:03.4]} 50... Kd3 {[%clk 0:00:02.4]} 51. Bh4 {[%clk
0:00:03.9]} 51... Ke2 {[%clk 0:00:02.1]} 52. Rgb4 {[%clk 0:00:02.2]} 52... Qf7
{[%clk 0:00:02.5]} 53. Bg3 {[%clk 0:00:02.2]} 53... Qxf3+ {[%clk 0:00:02.3]} 54.
Kh2 {[%clk 0:00:02.5]} 54... Qh5+ {[%clk 0:00:02.5]} 55. Rh4 {[%clk 0:00:03.1]}
55... Qf7 {[%clk 0:00:02]} 56. Rb2+ {[%clk 0:00:03.6]} 56... Kf1 {[%clk
0:00:02]} 0-1

[Event "Late-Titled-Tuesday-Blitz-January-30-2024"]
[Site "Chess.com"]
[Date "2024.01.30"]
[Round "7"]
[White "Adar_07"]
[Black "mbojan"]
[Result "1-0"]
[WhiteElo "2691"]
[BlackElo "2850"]
[TimeControl "180+1"]
[EndTime "15:18:40 PST"]
[Termination "Adar_07 won by checkmate"]

1. e4 {[%clk 0:03:00.9]} 1... a6 {[%clk 0:02:57.6]} 2. Nf3 {[%clk 0:02:59.3]}
2... e6 {[%clk 0:02:58.2]} 3. d4 {[%clk 0:02:59.2]} 3... d5 {[%clk 0:02:58.7]}
4. exd5 {[%clk 0:02:59.2]} 4... exd5 {[%clk 0:02:59.6]} 5. Bd3 {[%clk
0:02:59.6]} 5... Bd6 {[%clk 0:02:59.8]} 6. Nc3 {[%clk 0:02:57.4]} 6... Ne7
{[%clk 0:03:00.4]} 7. Bg5 {[%clk 0:02:56.6]} 7... f6 {[%clk 0:02:59.5]} 8. Bh4
{[%clk 0:02:56.7]} 8... O-O {[%clk 0:02:58.8]} 9. O-O {[%clk 0:02:57]} 9... Nbc6
{[%clk 0:02:59.4]} 10. Re1 {[%clk 0:02:56.8]} 10... Bf5 {[%clk 0:02:57.8]} 11.
Bxf5 {[%clk 0:02:55.6]} 11... Nxf5 {[%clk 0:02:58.7]} 12. Bg3 {[%clk 0:02:48.8]}
12... Bxg3 {[%clk 0:02:51.5]} 13. hxg3 {[%clk 0:02:49.7]} 13... Qd7 {[%clk
0:02:51.6]} 14. Ne2 {[%clk 0:02:46.4]} 14... Rae8 {[%clk 0:02:48.3]} 15. c3
{[%clk 0:02:46.3]} 15... Nce7 {[%clk 0:02:34.7]} 16. Nf4 {[%clk 0:02:46.1]}
16... Ng6 {[%clk 0:02:33.9]} 17. Nxg6 {[%clk 0:02:45.4]} 17... hxg6 {[%clk
0:02:34.8]} 18. Qd3 {[%clk 0:02:43.2]} 18... Rxe1+ {[%clk 0:02:33.5]} 19. Rxe1
{[%clk 0:02:44.1]} 19... Re8 {[%clk 0:02:33.9]} 20. g4 {[%clk 0:02:39.4]} 20...
Rxe1+ {[%clk 0:02:20.5]} 21. Nxe1 {[%clk 0:02:40.3]} 21... Ne7 {[%clk
0:02:20.6]} 22. f3 {[%clk 0:02:35.9]} 22... Kf7 {[%clk 0:02:20.4]} 23. Nc2
{[%clk 0:02:35.8]} 23... Nc8 {[%clk 0:02:19]} 24. Ne3 {[%clk 0:02:30.1]} 24...
c6 {[%clk 0:02:18.7]} 25. c4 {[%clk 0:02:26.6]} 25... dxc4 {[%clk 0:02:06.1]}
26. Qxc4+ {[%clk 0:02:26.8]} 26... Qe6 {[%clk 0:02:06.3]} 27. Kf2 {[%clk
0:02:16.2]} 27... Ne7 {[%clk 0:01:18]} 28. b3 {[%clk 0:01:54.3]} 28... Qxc4
{[%clk 0:01:01.9]} 29. bxc4 {[%clk 0:01:55.2]} 29... b5 {[%clk 0:01:00.6]} 30.
d5 {[%clk 0:01:35.8]} 30... cxd5 {[%clk 0:00:50.5]} 31. cxd5 {[%clk 0:01:35.6]}
31... Nc8 {[%clk 0:00:45.7]} 32. Nc2 {[%clk 0:01:30.5]} 32... Ke7 {[%clk
0:00:20.7]} 33. Ke3 {[%clk 0:01:09.3]} 33... Kd6 {[%clk 0:00:21.2]} 34. Kd4
{[%clk 0:01:09.2]} 34... Ne7 {[%clk 0:00:21.5]} 35. Ne3 {[%clk 0:01:06.7]} 35...
a5 {[%clk 0:00:22]} 36. a3 {[%clk 0:01:06]} 36... g5 {[%clk 0:00:17.3]} 37. g3
{[%clk 0:00:59.3]} 37... g6 {[%clk 0:00:17.3]} 38. f4 {[%clk 0:00:59.6]} 38...
gxf4 {[%clk 0:00:15.7]} 39. gxf4 {[%clk 0:01:00.5]} 39... g5 {[%clk 0:00:15.4]}
40. f5 {[%clk 0:00:55.3]} 40... Nc8 {[%clk 0:00:15.1]} 41. Nd1 {[%clk 0:00:54]}
41... Na7 {[%clk 0:00:07.8]} 42. Nc3 {[%clk 0:00:51.8]} 42... b4 {[%clk
0:00:08.3]} 43. Ne4+ {[%clk 0:00:50.9]} 43... Ke7 {[%clk 0:00:07.1]} 44. axb4
{[%clk 0:00:50.8]} 44... axb4 {[%clk 0:00:07.6]} 45. Kc4 {[%clk 0:00:50.1]}
45... Nc8 {[%clk 0:00:05.3]} 46. Kxb4 {[%clk 0:00:49.4]} 46... Nb6 {[%clk
0:00:04.4]} 47. d6+ {[%clk 0:00:46.1]} 47... Kd7 {[%clk 0:00:02.7]} 48. Kc5
{[%clk 0:00:45.5]} 48... Na4+ {[%clk 0:00:02.9]} 49. Kd5 {[%clk 0:00:46]} 49...
Nb6+ {[%clk 0:00:03.5]} 50. Kc5 {[%clk 0:00:46.5]} 50... Na4+ {[%clk 0:00:04]}
51. Kd4 {[%clk 0:00:46.9]} 51... Nb6 {[%clk 0:00:01.1]} 52. Nxf6+ {[%clk
0:00:44.6]} 52... Kxd6 {[%clk 0:00:02]} 53. Ne4+ {[%clk 0:00:45.4]} 53... Ke7
{[%clk 0:00:02.9]} 54. Nxg5 {[%clk 0:00:46.3]} 54... Nd7 {[%clk 0:00:03.7]} 55.
Ne4 {[%clk 0:00:44.9]} 55... Kf7 {[%clk 0:00:03.7]} 56. g5 {[%clk 0:00:43.6]}
56... Ke7 {[%clk 0:00:04.4]} 57. g6 {[%clk 0:00:42.6]} 57... Nb6 {[%clk
0:00:02.7]} 58. Ke5 {[%clk 0:00:41.6]} 58... Nd7+ {[%clk 0:00:02.9]} 59. Kf4
{[%clk 0:00:41.9]} 59... Kf8 {[%clk 0:00:02.3]} 60. Kg5 {[%clk 0:00:41.6]} 60...
Ne5 {[%clk 0:00:02.7]} 61. f6 {[%clk 0:00:39.5]} 61... Nf3+ {[%clk 0:00:03.1]}
62. Kh6 {[%clk 0:00:38.9]} 62... Kg8 {[%clk 0:00:02]} 63. f7+ {[%clk 0:00:34.8]}
63... Kf8 {[%clk 0:00:02]} 64. Kh7 {[%clk 0:00:35.3]} 64... Ne5 {[%clk
0:00:01.7]} 65. g7+ {[%clk 0:00:35.4]} 65... Ke7 {[%clk 0:00:01.9]} 66. g8=Q
{[%clk 0:00:36.3]} 66... Nxf7 {[%clk 0:00:02.3]} 67. Qg7 {[%clk 0:00:34.7]}
67... Ke6 {[%clk 0:00:02.6]} 68. Qf6+ {[%clk 0:00:35.2]} 68... Kd5 {[%clk
0:00:03.2]} 69. Qxf7+ {[%clk 0:00:35.6]} 69... Kd4 {[%clk 0:00:04.1]} 70. Qf4
{[%clk 0:00:33.9]} 70... Kd3 {[%clk 0:00:04.3]} 71. Nc5+ {[%clk 0:00:33.2]}
71... Kc3 {[%clk 0:00:05.2]} 72. Kg6 {[%clk 0:00:33]} 72... Kc2 {[%clk 0:00:06]}
73. Qe3 {[%clk 0:00:32.7]} 73... Kd1 {[%clk 0:00:06.9]} 74. Qf2 {[%clk
0:00:32.7]} 74... Kc1 {[%clk 0:00:07.8]} 75. Kf5 {[%clk 0:00:31.6]} 75... Kb1
{[%clk 0:00:08.7]} 76. Ke4 {[%clk 0:00:31.8]} 76... Kc1 {[%clk 0:00:09.3]} 77.
Kd3 {[%clk 0:00:31.3]} 77... Kb1 {[%clk 0:00:10.2]} 78. Qc2+ {[%clk 0:00:31.2]}
78... Ka1 {[%clk 0:00:11.1]} 79. Nb3# {[%clk 0:00:32]} 1-0